bitfinex/quotes_ETHUSD_20260103
["timestamp","ask_amount","ask_price","bid_price","bid_amount"]
[1767469902978,2.39340467,3111.8,3111.2,6.21679309]
[1767469904252,5.60703714,3111.8,3111.2,6.21679309]
[1767469905874,3.21563247,3111.8,3111.3,2.27136643]
[1767469906078,0.002,3111.8,3111.3,2.27136643]
[1767469906379,0.002,3111.8,3111.3,6.41213573]
[1767469907268,0.002,3111.8,3111.3,3.19804828]
[1767469912787,0.002,3111.8,3111.3,6.41213621]
[1767469913496,0.002,3111.8,3111.3,3.19804828]
[1767469913701,0.002,3111.8,3111.3,2.27136643]
[1767469921099,0.002,3111.8,3111.2,3.78012968]
[1767469921294,2.2755827,3111.8,3111.2,0.00080032]
[1767469922578,2.2755827,3111.8,3111.2,3.21498815]
[1767469923801,5.48925369,3111.8,3111.2,0.00080032]
[1767469939003,5.48925369,3111.8,3111.2,2.42784221]
[1767469951150,8.70292468,3111.8,3111.2,2.42784221]
[1767469955824,2.25857402,3111.7,3111.2,0.00080032]
[1767469956941,6.42934198,3111.8,3111.2,0.00080032]
[1767469957123,8.687916,3111.8,3111.2,0.00080032]
[1767469958920,8.687916,3111.8,3111.2,2.49230286]
[1767469964050,2.25857402,3111.7,3111.2,0.00080032]
[1767469965046,3.21367741,3111.7,3111.2,2.49230286]
[1767469965523,3.21367741,3111.7,3111.2,0.00080032]
[1767469965724,6.43618582,3111.7,3111.2,0.00080032]
[1767469967553,2.25857402,3111.6,3111.2,0.00080032]
[1767469969949,4.1776118,3111.7,3111.2,0.00080032]
[1767469970151,6.43618582,3111.7,3111.2,0.00080032]
[1767469970352,5.47225143,3111.7,3111.2,0.00080032]
[1767469970741,0.96393439,3111.6,3111.2,0.00080032]
[1767469973158,3.21388397,3111.5,3111.2,0.00080032]
[1767469973745,5.47245799,3111.5,3111.2,0.00080032]
[1767469975362,5.47258971,3111.4,3111.2,0.00080032]
[1767469976536,2.25857402,3111.3,3110.8,0.001]
[1767469976832,3.22258275,3111.3,3110.8,0.001]
[1767469977462,3.21419388,3111.2,3111.1,0.001]
[1767469977633,3.21419388,3111.2,3110.8,0.001]
[1767469978659,5.4727679,3111.2,3110.8,0.001]
[1767469979359,5.60130239,3111.2,3110.8,0.001]
[1767469979561,8.81549627,3111.2,3110.8,0.001]
[1767469979762,8.68696178,3111.2,3110.8,0.001]
[1767469979944,2.25458662,3111.0,3110.6,0.001]
[1767469980350,2.25458662,3111.0,3110.5,0.001]
[1767469980559,0.84380048,3110.9,3110.5,0.001]
[1767469982136,3.21460717,3110.8,3110.5,0.001]
[1767469988850,6.42921434,3110.8,3110.4,0.00080048]
[1767469989172,8.68380096,3110.8,3110.2,0.001]
[1767469989473,3.21876575,3110.7,3110.2,0.001]
[1767469990684,3.21481386,3110.6,3110.2,0.001]
[1767469991178,6.42962772,3110.6,3110.2,0.001]
[1767469991564,0.9642907,3110.5,3110.2,0.001]
[1767469991770,0.9642907,3110.5,3110.1,0.001]
[1767469993377,4.17928566,3110.5,3110.1,0.001]
[1767469993752,3.21499496,3110.5,3110.1,0.001]
[1767469994151,0.9642907,3110.4,3110.1,0.001]
[1767469995580,0.9642907,3110.4,3110.1,2.25172372]
[1767470007896,0.9642907,3110.4,3110.1,0.001]
[1767470008082,4.17932812,3110.4,3110.1,0.001]
[1767470008282,0.9642907,3110.4,3110.1,0.001]
[1767470008483,3.21483118,3110.6,3110.1,0.001]
[1767470008798,0.9642907,3110.4,3110.1,0.001]
[1767470010710,4.17932554,3110.4,3110.1,0.001]
[1767470011074,3.21503484,3110.4,3110.1,0.001]
[1767470011274,0.9642907,3110.3,3110.1,0.001]
[1767470014800,0.9642907,3110.3,3110.0,0.00180048]
[1767470020092,0.9642907,3110.3,3110.0,2.2839157]
[1767470022012,0.9642907,3110.3,3110.1,2.28211522]
[1767470024002,0.002,3110.4,3110.1,2.28211522]
[1767470032795,0.002,3110.4,3110.0,0.00180048]
[1767470042972,0.002,3110.4,3110.0,0.63624147]
[1767470043173,0.00280048,3110.8,3110.3,2.38514355]
[1767470044038,0.002,3110.4,3110.3,2.38514355]
[1767470044239,0.00280048,3110.8,3110.4,2.38514355]
[1767470048562,0.00280048,3110.8,3110.4,5.6001525]
[1767470049460,0.00280048,3110.8,3110.4,6.48168953]
[1767470051377,0.00280048,3110.8,3110.5,2.38514355]
[1767470054181,0.00280048,3110.8,3110.4,4.09654598]
[1767470054877,0.00280048,3110.8,3110.4,6.48168953]
[1767470058555,0.00280048,3110.8,3110.4,6.48268953]
[1767470060681,0.00280048,3110.8,3110.4,4.09754598]
[1767470061385,0.00280048,3110.8,3110.5,2.79489815]
[1767470079920,0.00280048,3110.8,3110.5,0.4097546]
[1767470085630,0.00280048,3110.8,3110.5,2.79515509]
[1767470094841,0.00280048,3110.8,3110.5,6.01006222]
[1767470096442,0.00280048,3110.8,3110.5,2.79515509]
[1767470099244,0.00280048,3110.8,3110.5,0.4097546]
[1767470107258,0.00280048,3110.8,3110.4,4.09751178]
[1767470107452,0.00280048,3110.8,3110.4,0.88253703]
[1767470109755,0.00280048,3110.8,3110.4,4.09753622]
[1767470129767,0.00280048,3110.8,3110.4,0.88253703]
[1767470130774,0.00280048,3110.8,3110.4,0.001]
[1767470132964,2.46029365,3110.8,3110.4,0.001]
[1767470133988,5.67494283,3110.8,3110.4,0.001]
[1767470135392,2.46029365,3110.8,3110.4,0.001]
[1767470135890,5.67492662,3110.8,3110.4,0.001]
[1767470137193,2.45749317,3110.7,3110.0,0.00180048]
[1767470137690,2.45749317,3110.7,3110.0,3.21717117]
[1767470139492,5.67228968,3110.7,3110.0,0.00180048]
[1767470140391,2.45749317,3110.6,3110.0,0.00180048]
[1767470141297,5.67234524,3110.6,3110.0,0.00180048]
[1767470153812,2.45749317,3110.5,3110.0,0.00180048]
[1767470159910,2.26270365,3110.7,3110.0,0.00180048]
[1767470160109,2.26270365,3110.7,3110.0,2.46735727]
[1767470161925,5.47748818,3110.7,3110.0,5.68271378]
[1767470190577,5.47748818,3110.7,3110.1,2.32057473]
[1767470192482,2.34415819,3110.6,3110.0,0.00180048]
[1767470192850,2.34415819,3110.6,3110.0,2.41957948]
[1767470194385,2.34415819,3110.6,3110.1,3.21533069]
[1767470202588,2.34615819,3110.6,3110.1,3.21533069]
[1767470206689,2.90273251,3110.6,3110.1,3.21533069]
[1767470208820,0.55857432,3110.6,3110.1,3.21533069]
[1767470208984,0.002,3110.6,3110.1,3.21533069]
[1767470237026,2.35904965,3110.6,3110.0,3.21718478]
[1767470239816,2.35704965,3110.5,3110.0,0.00180048]
[1767470246029,5.57200592,3110.5,3110.0,0.00180048]
[1767470247011,2.35704965,3110.5,3110.0,0.00180048]
[1767470257857,2.35704965,3110.5,3110.0,3.21723456]
[1767470260554,2.35904965,3110.5,3110.0,3.21723456]
[1767470263064,0.002,3110.5,3110.0,5.56639704]
[1767470280769,0.002,3110.5,3110.0,6.41224462]
[1767470282872,0.002,3110.5,3110.0,9.6276787]
[1767470289582,0.002,3110.5,3110.0,8.78183112]
[1767470290263,0.002,3110.5,3110.1,2.49587097]
[1767470292782,0.002,3110.5,3110.2,3.21522731]
[1767470302163,0.002,3110.5,3110.0,0.00180048]
[1767470303366,0.002,3110.5,3110.0,6.43266864]
[1767470303563,0.002,3110.5,3110.0,7.3257226]
[1767470303958,0.002,3110.5,3110.1,2.49587097]
[1767470309571,0.002,3110.5,3110.2,3.21522731]
[1767470315507,2.42854956,3110.5,3110.0,0.00180048]
[1767470316001,0.002,3110.5,3110.0,2.41184093]
[1767470316604,0.002,3110.5,3110.1,3.21533069]
[1767470328413,0.002,3110.5,3110.1,5.62537114]
[1767470337415,0.002,3110.5,3110.1,3.21533069]
[1767470339315,0.002,3110.5,3110.0,0.00180048]
[1767470340514,0.002,3110.5,3110.0,3.21723456]
[1767470343290,0.002,3110.5,3110.0,4.11456942]
[1767470344618,0.002,3110.5,3110.0,7.3300035]
[1767470348524,0.002,3110.5,3110.0,9.58622207]
[1767470366249,2.30027121,3110.5,3110.0,7.3300035]
[1767470368230,0.002,3110.5,3110.0,7.3300035]
[1767470369254,0.002,3110.5,3110.0,9.58622207]
[1767470374838,0.002,3110.5,3110.2,8.90665898]
[1767470375009,0.00280048,3110.8,3110.4,2.47620436]
[1767470376236,2.39399229,3111.1,3110.4,2.47620436]
[1767470376443,2.39399229,3111.1,3110.4,2.47700492]
[1767470376738,2.39399229,3111.1,3110.5,2.47620436]
[1767470377142,2.39399229,3111.1,3110.6,3.21481386]
[1767470380222,2.39599229,3111.1,3110.6,3.21481386]
[1767470382216,2.39599229,3111.1,3110.5,3.21591721]
[1767470382420,2.39599229,3111.1,3110.4,4.1799305]
[1767470382821,2.39599229,3111.1,3110.5,3.21491721]
[1767470383322,2.39599229,3111.1,3110.5,4.24758912]
[1767470384049,0.00280032,3111.1,3110.5,4.24758912]
[1767470384348,0.00280032,3111.1,3110.6,2.47620436]
[1767470386653,0.96413575,3111.4,3110.9,2.93187143]
[1767470386852,0.002,3111.8,3110.9,2.47620436]
[1767470386853,1.57016722,3111.7,3110.9,2.47620436]
[1767470387043,1.56816722,3111.5,3110.8,2.47620436]
[1767470387444,1.56816722,3111.5,3110.8,3.44021619]
[1767470387758,0.002,3111.1,3110.9,3.21450384]
[1767470388056,0.002,3111.1,3110.9,5.6907082]
[1767470389566,1.56816722,3111.5,3110.9,6.9709123]
[1767470389724,1.56816722,3111.5,3110.8,4.17859231]
[1767470390642,0.00280032,3111.6,3110.9,5.6907082]
[1767470390932,0.00280032,3111.6,3110.9,3.21450384]
[1767470392037,0.00280032,3111.6,3110.9,5.6907082]
[1767470394555,0.00280032,3111.6,3110.9,5.6917082]
[1767470399061,0.00280032,3111.6,3111.0,2.4444186]
[1767470401975,0.00280032,3111.6,3111.0,2.48897864]
[1767470402576,0.002,3111.7,3111.0,2.48897864]
[1767470402577,0.002,3111.7,3111.3,2.48897864]
[1767470403436,0.002,3111.6,3111.3,2.48897864]
[1767470403762,0.002,3111.8,3111.5,2.48897864]
[1767470403982,0.002,3111.8,3111.5,2.48697864]
[1767470404264,0.00080056,3112.3,3111.8,2.48897864]
[1767470404655,0.00080056,3112.3,3111.9,0.9637455]
[1767470404857,0.00080056,3112.3,3111.9,3.45272414]
[1767470405961,0.00080056,3112.3,3111.9,0.9637455]
[1767470406161,0.00080056,3112.3,3111.6,2.48897864]
[1767470406162,0.002,3112.2,3111.6,2.48897864]
[1767470406338,0.002,3112.2,3111.6,0.96377955]
[1767470406538,0.002,3112.2,3111.6,4.1775492]
[1767470406859,0.002,3112.1,3111.5,0.0008004]
[1767470407970,0.002,3112.0,3111.5,0.0008004]
[1767470408267,0.32152644,3111.9,3111.5,0.0008004]
[1767470410067,0.32152644,3111.9,3111.5,0.0018004]
[1767470410366,0.002,3112.1,3111.5,2.49077904]
[1767470425667,0.004,3112.1,3111.5,2.49077904]
[1767470443110,0.004,3112.1,3111.5,2.48877904]
[1767470443287,0.0008004,3111.9,3111.5,2.48877904]
[1767470444309,0.0008004,3111.9,3111.5,2.48977904]
[1767470445707,2.43457327,3111.9,3111.2,0.0008004]
[1767470445909,2.7615302,3111.8,3111.2,0.0008004]
[1767470450212,8.86112769,3111.7,3111.2,0.0008004]
[1767470455996,2.47394512,3111.6,3111.2,0.0008004]
[1767470456308,2.47474552,3111.6,3111.1,0.001]
[1767470456517,2.43457327,3111.6,3110.9,0.001]
[1767470456685,3.0310218,3111.5,3110.9,0.001]
[1767470459028,8.86174741,3111.4,3110.9,0.001]
[1767470459188,2.43377287,3111.3,3110.9,0.001]
[1767470460621,3.21398727,3111.4,3110.9,0.001]
[1767470461621,3.21398727,3111.4,3110.9,2.37324782]
[1767470464921,3.5417446,3111.4,3110.9,2.37324782]
[1767470466327,6.75573187,3111.4,3110.9,2.37324782]
[1767470467309,3.5417446,3111.4,3110.9,2.37324782]
[1767470468210,6.75573187,3111.4,3110.9,2.37324782]
[1767470468411,6.75573187,3111.4,3110.7,0.0008004]
[1767470468730,6.75573187,3111.4,3110.7,2.37304822]
[1767470470394,9.07728259,3111.4,3110.7,2.37304822]
[1767470470930,0.59724893,3111.3,3110.7,2.37304822]
[1767470472032,3.21419388,3111.2,3110.9,0.001]
[1767470473234,3.21419388,3111.2,3110.7,2.37304822]
[1767470479332,3.8113862,3111.3,3110.7,2.37304822]
[1767470481410,0.59724893,3111.3,3110.7,2.37304822]
[1767470481715,0.002,3111.4,3110.9,2.37224782]
[1767470482515,3.21600447,3111.4,3110.9,2.37224782]
[1767470489243,3.21600447,3111.4,3110.9,2.37324782]
[1767470491446,0.002,3111.4,3110.9,2.37324782]
[1767470503768,0.002,3111.4,3110.9,2.35189125]
[1767470505166,0.002,3111.4,3111.0,2.43810855]
[1767470513651,0.002,3111.4,3110.9,0.001]
[1767470516480,0.002,3111.4,3110.9,2.43910855]
[1767470521694,2.35803567,3111.4,3110.9,0.001]
[1767470522489,0.002,3111.4,3110.9,0.001]
[1767470524292,0.002,3111.4,3110.9,2.31430873]
[1767470528357,2.39821051,3111.4,3110.9,0.001]
[1767470528560,2.35683607,3111.1,3110.6,0.001]
[1767470529758,2.35683607,3111.1,3110.9,0.001]
[1767470530094,2.59171928,3111.0,3110.6,0.001]
[1767470530294,3.21450384,3110.9,3110.6,0.001]
[1767470534866,3.21450384,3110.9,3110.5,0.001]
[1767470535272,5.57053951,3110.9,3110.5,0.001]
[1767470536359,3.21450384,3110.9,3110.5,0.001]
[1767470541620,5.57053951,3110.9,3110.5,0.001]
[1767470542605,2.35683607,3111.1,3110.5,0.001]
[1767470543312,2.35683607,3111.1,3110.4,0.00080056]
[1767470544115,2.35683607,3111.1,3110.5,0.001]
[1767470548727,8.78483669,3111.0,3110.5,0.001]
[1767470550022,2.31797251,3110.9,3110.4,0.00080056]
[1767470550932,3.21460717,3110.8,3110.5,0.001]
[1767470551105,3.21460717,3110.8,3110.4,0.00080056]
[1767470557229,5.53694507,3110.8,3110.4,0.00080056]
[1767470557619,5.53694507,3110.8,3110.4,0.00180056]
[1767470558831,2.3223379,3110.7,3110.4,0.00180056]
[1767470559031,5.53715176,3110.6,3110.4,0.00180056]
[1767470559701,5.53715176,3110.6,3110.2,0.001]
[1767470560930,3.21481386,3110.6,3110.2,0.001]
[1767470561532,2.3223379,3110.6,3109.9,3.21651806]
[1767470561706,2.3223379,3110.3,3109.9,3.85983256]
[1767470561906,0.00080048,3110.4,3110.0,2.3578524]
[1767470565324,0.00080048,3110.4,3110.0,5.57328139]
[1767470565843,0.00080048,3110.4,3110.0,2.3578524]
[1767470566744,2.3223379,3110.3,3109.9,0.001]
[1767470567244,0.00080048,3110.4,3109.9,0.001]
[1767470567632,0.00080048,3110.4,3109.9,2.3588524]
[1767470567830,2.32313838,3110.4,3109.9,0.001]
[1767470568138,2.32313838,3110.4,3109.8,0.001]
[1767470569936,2.3223379,3110.2,3109.8,0.001]
[1767470571747,2.3223379,3110.2,3109.6,0.00180064]
[1767470572546,2.3223379,3110.1,3109.6,0.00180064]
[1767470573448,2.3223379,3110.1,3109.8,0.001]
[1767470574546,3.21531897,3110.2,3109.8,0.001]
[1767470576936,2.3223379,3110.1,3109.6,0.00180064]
[1767470577645,6.43024788,3110.3,3109.6,0.00180064]
[1767470577848,6.43024788,3110.3,3109.6,2.35965304]
[1767470577849,3.21533069,3110.1,3109.6,2.35965304]
[1767470578332,3.21533069,3110.1,3109.6,0.00180064]
[1767470578723,6.43066138,3110.1,3109.6,0.00180064]
[1767470579122,3.21533069,3110.1,3109.6,0.00180064]
[1767470579637,3.21533069,3110.1,3109.6,2.35965304]
[1767470580524,6.43066138,3110.1,3109.6,2.35965304]
[1767470580853,5.63585649,3110.1,3109.6,0.00180064]
[1767470581045,8.85118718,3110.1,3109.6,0.00180064]
[1767470581854,0.00080032,3109.7,3109.3,2.30335046]
[1767470582632,0.00080032,3109.7,3109.3,5.51948024]
[1767470582854,0.00080032,3109.7,3109.4,2.30335046]
[1767470586765,0.00080032,3109.7,3109.3,3.21612978]
[1767470587073,2.42132612,3109.7,3109.3,3.21612978]
[1767470587436,0.00080032,3109.7,3109.2,5.52061187]
[1767470587637,0.00080032,3109.7,3109.3,2.30335046]
[1767470589165,0.00080032,3109.7,3109.4,2.30335046]
[1767470591771,0.00080032,3109.7,3109.3,0.001]
[1767470592069,0.00080032,3109.7,3109.4,2.30335046]
[1767470594439,0.00080032,3109.7,3109.3,0.001]
[1767470594637,2.42132612,3109.7,3109.3,0.001]
[1767470594835,2.42132612,3109.7,3109.1,0.001]
[1767470594836,2.4205258,3109.5,3109.1,0.001]
[1767470595138,2.4205258,3109.5,3109.0,0.71644428]
[1767470595366,0.00080024,3109.4,3108.9,0.001]
[1767470595566,0.00080024,3109.4,3109.0,3.2164092]
[1767470595869,0.00080024,3109.4,3108.9,3.21754312]
[1767470596846,2.31604314,3109.4,3108.9,0.001]
[1767470598148,0.00080024,3109.4,3108.9,2.30435046]
[1767470599442,0.00080024,3109.4,3109.0,2.30335046]
[1767470599975,2.3152429,3109.3,3107.9,1e-08]
[1767470600171,2.3152429,3109.3,3107.6,2.09622621]
[1767470600172,0.0008,3108.0,3107.6,2.09622621]
[1767470600348,0.00080008,3108.5,3107.6,2.09622621]
[1767470600349,0.00080008,3108.5,3108.0,2.30335046]
[1767470600548,0.0008004,3109.0,3108.3,2.30235046]
[1767470600871,1.91153529,3109.1,3108.6,0.00080048]
[1767470601166,1.91153529,3109.1,3108.1,0.00080016]
[1767470601167,0.22354444,3109.0,3108.1,2.30415062]
[1767470601338,6.4337371,3109.0,3108.2,2.30335046]
[1767470603478,3.21726879,3109.0,3108.2,2.30335046]
[1767470603845,6.4337371,3109.0,3108.2,2.30335046]
[1767470608585,6.4337371,3109.0,3108.3,2.30335046]
[1767470609578,3.21726879,3109.0,3108.3,2.30335046]
[1767470612179,0.00080048,3109.0,3108.3,2.30335046]
[1767470612561,0.00080048,3109.0,3108.4,2.3080622]
[1767470615198,0.00080048,3109.0,3108.5,3.21698568]
[1767470615397,0.00080048,3109.0,3108.6,2.3080622]
[1767470619812,0.00180048,3109.0,3108.6,2.3080622]
[1767470620816,2.93308072,3108.4,3106.9,2.3100622]
[1767470621107,0.00080008,3108.0,3107.6,2.3080622]
[1767470621295,0.09984079,3108.5,3107.8,2.3080622]
[1767470621607,0.29330807,3108.2,3107.7,0.844]
[1767470623106,3.5106456,3108.2,3107.7,0.844]
[1767470623283,3.5106456,3108.2,3107.8,0.844]
[1767470623479,4.41586035,3108.2,3107.8,0.844]
[1767470623796,3.21708917,3108.4,3107.8,0.844]
[1767470624284,8.75858805,3108.4,3107.8,0.844]
[1767470625411,5.54168261,3108.3,3107.8,0.844]
[1767470627410,5.54168261,3108.3,3107.8,0.845]
[1767470627622,6.43456716,3108.3,3107.8,3.1030622]
[1767470627783,4.1897687,3108.3,3107.8,3.1030622]
[1767470628901,4.1897687,3108.3,3107.8,2.37111628]
[1767470629708,2.32519919,3108.5,3107.8,2.37111628]
[1767470629709,0.00080016,3108.5,3108.0,2.3080622]
[1767470630679,3.21781143,3108.5,3108.0,2.3080622]
[1767470631286,0.00080016,3108.5,3108.0,2.3080622]
[1767470634802,0.00180016,3108.5,3108.0,2.3080622]
[1767470635514,0.00180016,3108.5,3108.0,5.52554435]
[1767470637239,3.21833333,3109.0,3108.3,2.3080622]
[1767470637525,3.21833333,3109.0,3108.4,3.1520622]
[1767470639621,3.21833333,3109.0,3108.1,0.00080024]
[1767470639622,2.32439903,3108.9,3108.1,0.00080024]
[1767470639814,2.32439903,3108.8,3108.5,0.53097853]
[1767470640130,2.32439903,3108.8,3108.5,0.52897853]
[1767470641554,2.32439903,3108.8,3108.1,3.21815258]
[1767470641555,0.84399999,3108.6,3108.1,3.21815258]
[1767470641757,0.84399999,3108.6,3108.2,0.844]
[1767470642248,0.84399999,3108.6,3108.2,3.12401263]
[1767470642453,0.84399999,3108.6,3108.3,2.28001263]
[1767470644951,0.84399999,3108.6,3108.3,2.27801263]
[1767470645850,0.84399999,3108.6,3108.4,0.844]
[1767470647147,0.001,3108.8,3108.4,0.844]
[1767470652436,0.001,3108.8,3108.4,0.842]
[1767470652635,0.88170929,3108.8,3108.4,0.842]
[1767470652836,0.001,3108.8,3108.4,0.842]
[1767470653253,0.001,3108.8,3108.4,0.84]
[1767470653725,0.001,3108.8,3108.5,0.844]
[1767470653921,0.001,3108.8,3108.5,0.842]
[1767470658349,0.001,3108.8,3108.6,0.844]
[1767470658533,0.001,3108.8,3108.6,0.50154231]
[1767470659379,0.001,3108.8,3108.6,0.49958608]
[1767470660362,0.001,3108.8,3108.6,0.49758608]
[1767470660555,0.32292688,3108.8,3108.6,0.49758608]
[1767470662868,3.53960382,3108.8,3108.4,2.27996887]
[1767470663167,3.53960382,3108.8,3108.5,0.844]
[1767470665276,3.53960382,3108.8,3108.5,0.845]
[1767470665439,3.53960382,3108.8,3108.5,0.84400001]
[1767470665767,0.67561925,3108.7,3108.5,0.84400001]
[1767470666381,0.67561925,3108.7,3108.3,2.22590347]
[1767470666670,3.04676809,3108.7,3108.2,0.844]
[1767470667350,2.37114884,3108.5,3108.1,0.00080024]
[1767470667545,2.37194908,3108.5,3107.9,2.28001263]
[1767470667765,2.37194908,3108.5,3107.7,5.49781974]
[1767470669371,2.37194908,3108.5,3107.7,2.28001263]
[1767470669372,3.21708917,3108.4,3107.7,2.28001263]
[1767470670173,3.21708917,3108.4,3107.7,5.49778186]
[1767470671276,6.43485982,3108.5,3107.8,2.43475699]
[1767470671453,7.35159827,3108.5,3107.8,2.43475699]
[1767470676866,2.29956906,3108.4,3107.6,5.47357958]
[1767470677066,2.29956906,3108.4,3107.7,0.844]
[1767470677445,2.29956906,3108.4,3107.7,3.09890106]
[1767470678186,2.29956906,3108.4,3107.8,2.25490106]
[1767470678386,7.35159827,3108.5,3107.8,2.25490106]
[1767470678556,4.13453628,3108.5,3107.9,2.25490106]
[1767470678757,0.00080024,3108.5,3108.1,2.25490106]
[1767470678959,0.001,3108.8,3108.5,2.25490106]
[1767470679176,0.001,3108.8,3108.2,3.09890106]
[1767470679486,2.30056906,3108.8,3108.2,3.09890106]
[1767470680084,0.001,3108.4,3108.2,3.09890106]
[1767470681662,0.001,3108.4,3108.2,6.31612462]
[1767470683092,0.001,3108.4,3108.2,3.09890106]
[1767470683783,0.001,3108.4,3108.2,6.31619016]
[1767470684791,0.001,3108.4,3108.3,2.25490106]
[1767470685485,0.001,3108.8,3108.4,2.25490106]
[1767470688363,0.001,3108.8,3108.5,2.25490106]
[1767470688998,0.001,3108.8,3108.4,3.21706611]
[1767470689199,0.001,3108.8,3108.5,0.844]
[1767470693600,2.30056906,3108.8,3108.5,0.84200001]
[1767470693803,2.30056906,3108.8,3108.2,3.2172487]
[1767470693804,2.30056906,3108.8,3108.6,0.844]
[1767470693982,2.30056906,3108.8,3108.4,0.844]
[1767470694183,2.30056906,3108.8,3108.2,4.0612487]
[1767470695403,2.30056906,3108.8,3108.3,0.001]
[1767470696295,0.79060096,3108.7,3108.3,0.001]
[1767470697401,3.21767739,3108.8,3108.3,2.25590106]
[1767470697986,0.001,3108.8,3108.3,2.25590106]
[1767470700704,0.64458251,3108.8,3108.3,2.25590106]
[1767470700911,0.64458251,3108.8,3108.3,2.09490106]
[1767470701213,3.86130877,3108.8,3108.3,2.09490106]
[1767470702376,0.88420973,3108.7,3108.1,2.45125684]
[1767470702576,0.79622448,3108.6,3108.1,2.45125684]
[1767470702903,0.79622448,3108.6,3108.3,0.001]
[1767470703703,6.43397136,3108.5,3107.6,2.45325668]
[1767470704004,0.95060096,3108.4,3107.6,2.45325668]
[1767470704335,0.68112245,3108.3,3107.6,2.45325668]
[1767470704498,0.844,3108.2,3107.6,2.45325668]
[1767470705101,4.06135,3108.2,3107.6,2.45325668]
[1767470709184,7.2787,3108.2,3107.6,2.45325668]
[1767470711112,0.95060096,3108.1,3107.6,0.00280016]
[1767470711406,3.21760674,3107.9,3107.6,0.00280016]
[1767470711911,0.79622448,3108.0,3107.3,6.43640249]
[1767470712093,0.84480016,3108.0,3107.4,2.45045652]
[1767470712297,0.84480016,3108.0,3107.6,2.45045652]
[1767470712808,0.84480016,3108.0,3107.6,2.25045652]
[1767470722829,0.84480016,3108.0,3107.7,2.45045652]
[1767470725210,0.84480016,3108.0,3107.7,5.66825049]
[1767470725411,0.84480016,3108.0,3107.8,2.45045652]
[1767470727159,0.84580016,3108.0,3107.8,2.45045652]
[1767470730634,3.21785564,3108.5,3108.0,2.48764905]
[1767470731235,0.00080032,3108.5,3108.0,2.48764905]
[1767470732832,2.47612234,3108.5,3107.7,2.48032606]
[1767470733343,3.21708917,3108.4,3107.7,2.48032606]
[1767470734030,2.47532202,3108.3,3107.7,2.48032606]
[1767470735435,2.47632202,3108.3,3107.7,2.48032606]
[1767470736440,3.21729618,3108.2,3107.7,2.48032606]
[1767470737119,5.6926182,3108.2,3107.6,3.21870772]
[1767470738140,2.47532202,3108.1,3107.6,0.00080024]
[1767470738349,3.04468384,3108.1,3107.6,0.00080024]
[1767470743748,2.47532202,3107.9,3107.6,0.00080024]
[1767470745045,3.21750321,3108.0,3107.6,0.00080024]
[1767470749617,5.69282523,3108.0,3107.6,0.00080024]
[1767470754654,5.69382523,3108.0,3107.6,0.00080024]
[1767470754951,6.60181034,3108.0,3107.6,0.00080024]
[1767470756831,2.47532202,3107.9,3107.6,0.00080024]
[1767470758221,7.34399153,3108.0,3107.6,0.00080024]
[1767470758426,7.34479177,3108.0,3107.5,0.002]
[1767470758850,4.12728856,3108.0,3107.5,0.002]
[1767470759154,0.56936182,3107.9,3107.5,0.002]
[1767470761756,3.78704046,3107.9,3107.5,0.002]
[1767470762155,3.78704046,3107.9,3107.5,2.318145]
[1767470763256,3.78704046,3107.9,3107.5,0.002]
[1767470768068,3.78704046,3107.9,3107.5,2.318145]
[1767470768571,0.56936182,3107.9,3107.5,2.318145]
[1767470768872,0.37887124,3107.8,3107.5,0.002]
[1767470769067,0.37887124,3107.8,3107.3,2.316145]
[1767470769275,9.47246936,3107.9,3107.2,0.001]
[1767470769869,9.47246936,3107.9,3107.2,2.317145]
[1767470770073,9.47246936,3107.9,3107.5,0.002]
[1767470770255,9.47346936,3107.9,3107.2,2.317145]
[1767470771648,2.46786452,3107.8,3107.2,2.317145]
[1767470771905,0.90798511,3107.7,3107.2,2.317145]
[1767470773875,3.21791736,3107.6,3107.2,2.317145]
[1767470774048,3.21791736,3107.6,3107.2,0.001]
[1767470776757,0.001,3107.9,3107.2,2.317145]
[1767470777278,3.21861048,3107.9,3107.2,2.317145]
[1767470778148,0.001,3107.9,3107.2,5.53538234]
[1767470778348,0.001,3107.9,3107.3,2.316145]
[1767470780671,0.001,3107.9,3107.5,2.316145]
[1767470782877,0.001,3107.9,3107.6,2.316145]
[1767470785278,0.001,3107.9,3107.4,2.316145]
[1767470788155,2.46886452,3107.9,3107.3,0.002]
[1767470788459,2.714931,3107.8,3107.3,0.002]
[1767470789257,2.46786452,3107.6,3107.1,0.002]
[1767470789557,2.46786452,3107.6,3107.0,0.00280008]
[1767470790905,2.46786452,3107.6,3106.6,3.21692753]
[1767470791113,2.40830421,3107.3,3106.6,3.21692753]
[1767470791614,2.27698881,3107.2,3106.4,6.43929387]
[1767470791815,2.27698881,3107.2,3106.5,1.47880273]
[1767470794212,2.27698881,3107.2,3106.6,3.21895319]
[1767470795302,3.21831981,3107.3,3107.0,0.002]
[1767470796514,3.21892455,3107.4,3107.0,0.002]
[1767470797214,5.49503118,3107.5,3107.0,0.002]
[1767470797400,3.76762759,3107.4,3107.0,0.00280016]
[1767470798907,6.98575206,3107.4,3107.0,0.00280016]
[1767470800410,3.76762759,3107.4,3107.0,0.00280016]
[1767470801217,6.98575206,3107.4,3107.0,0.00280016]
[1767470801405,9.26274087,3107.4,3107.0,0.00280016]
[1767470802101,6.0446164,3107.4,3107.0,0.00280016]
[1767470802301,6.0456164,3107.4,3107.0,0.00280016]
[1767470802798,6.0456164,3107.4,3106.7,2.40779138]
[1767470803019,5.49691344,3107.4,3106.7,2.40779138]
[1767470805719,8.71503791,3107.4,3106.7,2.40779138]
[1767470811625,2.27698881,3107.3,3106.5,5.62777484]
[1767470812337,2.27698881,3107.3,3106.6,2.40779138]
[1767470813119,2.27698881,3107.3,3106.6,5.62673383]
[1767470813323,2.27698881,3107.3,3106.6,6.51152224]
[1767470814121,3.21833161,3107.2,3106.6,3.29257979]
[1767470814834,6.43666322,3107.2,3106.6,3.29257979]
[1767470815029,8.71365203,3107.2,3106.6,3.29257979]
[1767470815203,8.71365203,3107.2,3106.6,2.40779138]
[1767470815926,5.49532042,3107.2,3106.6,2.40779138]
[1767470816702,8.71365203,3107.2,3106.6,2.40779138]
[1767470819538,2.27698881,3107.1,3106.5,0.001]
[1767470820940,3.14835401,3107.1,3106.5,0.001]
[1767470821351,6.43707756,3107.0,3106.5,0.001]
[1767470821840,3.21853878,3107.0,3106.5,0.001]